[Event "Titled Tuesday Blitz November 22 Early 2022"]
[White "Matinian, Nikita"]
[Black "Shuvalov, Evgenij"]
[WhiteFideId "24129100"]
[BlackFideId "4187237"]
[WhiteElo "2422"]
[BlackElo "2049"]
[Result "1-0"]
[Round "11"]
[TimeControl "180+1"]
[Date "2022.11.23"]
[WhiteClock "0:00:05"]
[BlackClock "0:00:01"]

1. e4 {[%clk 0:03:00]}  e6 {[%clk 0:02:49]} 2. d4 {[%clk 0:03:00]}  d5 {[%clk 0:02:48]} 3. Nc3 {[%clk 0:03:01]}  Bb4 {[%clk 0:02:47]} 4. e5 {[%clk 0:03:01]}  c5 {[%clk 0:02:47]} 5. a3 {[%clk 0:03:02]}  Bxc3+ {[%clk 0:02:47]} 6. bxc3 {[%clk 0:03:03]}  Ne7 {[%clk 0:02:47]} 7. h4 {[%clk 0:03:01]}  Qc7 {[%clk 0:02:47]} 8. h5 {[%clk 0:03:00]}  h6 {[%clk 0:02:46]} 9. Nf3 {[%clk 0:02:56]}  b6 {[%clk 0:02:45]} 10. Bb5+ {[%clk 0:02:52]}  Bd7 {[%clk 0:02:45]} 11. a4 {[%clk 0:02:50]}  Bxb5 {[%clk 0:02:45]} 12. axb5 {[%clk 0:02:51]}  a5 {[%clk 0:02:45]} 13. bxa6 {[%clk 0:02:49]}  Rxa6 {[%clk 0:02:44]} 14. Rb1 {[%clk 0:02:48]}  Nd7 {[%clk 0:02:41]} 15. O-O {[%clk 0:02:42]}  O-O {[%clk 0:02:40]} 16. Nh4 {[%clk 0:02:36]}  Ra2 {[%clk 0:02:20]} 17. Qg4 {[%clk 0:01:54]}  Kh7 {[%clk 0:02:19]} 18. Be3 {[%clk 0:01:52]}  Rxc2 {[%clk 0:02:11]} 19. f4 {[%clk 0:01:51]}  Rxc3 {[%clk 0:02:04]} 20. Rbe1 {[%clk 0:01:51]}  Rc4 {[%clk 0:01:48]} 21. f5 {[%clk 0:01:46]}  Qxe5 {[%clk 0:00:56]} 22. Bf2 {[%clk 0:00:39]}  Qf6 {[%clk 0:00:19]} 23. fxe6 {[%clk 0:00:35]}  fxe6 {[%clk 0:00:19]} 24. Rxe6 {[%clk 0:00:34]}  Rxd4 {[%clk 0:00:16]} 25. Qh3 {[%clk 0:00:16]}  Qf7 {[%clk 0:00:15]} 26. Ree1 {[%clk 0:00:10]}  Re4 {[%clk 0:00:11]} 27. Rxe4 {[%clk 0:00:07]}  dxe4 {[%clk 0:00:12]} 28. Qxd7 {[%clk 0:00:07]}  Nf5 {[%clk 0:00:09]} 29. Qxf7 {[%clk 0:00:04]}  Rxf7 {[%clk 0:00:10]} 30. Ng6 {[%clk 0:00:03]}  Ne7 {[%clk 0:00:09]} 31. Nxe7 {[%clk 0:00:02]}  Rxe7 {[%clk 0:00:10]} 32. Rd1 {[%clk 0:00:02]}  Re5 {[%clk 0:00:10]} 33. Rd6 {[%clk 0:00:02]}  Rxh5 {[%clk 0:00:09]} 34. Rxb6 {[%clk 0:00:02]}  Re5 {[%clk 0:00:08]} 35. Rc6 {[%clk 0:00:02]}  e3 {[%clk 0:00:07]} 36. Bg3 {[%clk 0:00:03]}  Rg5 {[%clk 0:00:07]} 37. Bf4 {[%clk 0:00:02]}  e2 {[%clk 0:00:06]} 38. Re6 {[%clk 0:00:02]}  Rf5 {[%clk 0:00:05]} 39. g3 {[%clk 0:00:01]}  g5 {[%clk 0:00:05]} 40. Re7+ {[%clk 0:00:01]}  Kg6 {[%clk 0:00:05]} 41. Bd2 {[%clk 0:00:02]}  Rf1+ {[%clk 0:00:05]} 42. Kg2 {[%clk 0:00:03]}  Rd1 {[%clk 0:00:04]} 43. Rxe2 {[%clk 0:00:03]}  Kf5 {[%clk 0:00:04]} 44. Be3 {[%clk 0:00:02]}  h5 {[%clk 0:00:04]} 45. Rc2 {[%clk 0:00:02]}  Rd5 {[%clk 0:00:03]} 46. Bxc5 {[%clk 0:00:01]}  h4 {[%clk 0:00:02]} 47. gxh4 {[%clk 0:00:02]}  gxh4 {[%clk 0:00:03]} 48. Bf2 {[%clk 0:00:02]}  Kg4 {[%clk 0:00:03]} 49. Rc4+ {[%clk 0:00:02]}  Kf5 {[%clk 0:00:03]} 50. Rxh4 {[%clk 0:00:03]}  Rd3 {[%clk 0:00:03]} 51. Rh5+ {[%clk 0:00:02]}  Kg4 {[%clk 0:00:03]} 52. Rh8 {[%clk 0:00:03]}  Kf4 {[%clk 0:00:03]} 53. Re8 {[%clk 0:00:03]}  Kg4 {[%clk 0:00:03]} 54. Be3 {[%clk 0:00:03]}  Rb3 {[%clk 0:00:02]} 55. Kf1 {[%clk 0:00:03]}  Rb2 {[%clk 0:00:02]} 56. Bf2 {[%clk 0:00:02]}  Kf3 {[%clk 0:00:02]} 57. Rf8+ {[%clk 0:00:02]}  Ke4 {[%clk 0:00:02]} 58. Kg2 {[%clk 0:00:03]}  Rc2 {[%clk 0:00:02]} 59. Kg3 {[%clk 0:00:04]}  Rc3+ {[%clk 0:00:02]} 60. Kg4 {[%clk 0:00:04]}  Rc2 {[%clk 0:00:02]} 61. Re8+ {[%clk 0:00:04]}  Kd3 {[%clk 0:00:02]} 62. Kf3 {[%clk 0:00:05]}  Rc3 {[%clk 0:00:01]} 63. Rd8+ {[%clk 0:00:05]}  Kc4+ {[%clk 0:00:01]} 64. Ke4 {[%clk 0:00:05]} 1-0


[Site "https://www.chess.com"]

[Event "Titled Tuesday Blitz November 22 Early 2022"]
[White "Muminova, Nafisa"]
[Black "Ibadov, Dashgyn"]
[WhiteFideId "14201526"]
[BlackFideId "24107514"]
[WhiteElo "2258"]
[BlackElo "2208"]
[Result "1-0"]
[Round "11"]
[TimeControl "180+1"]
[Date "2022.11.23"]
[WhiteClock "0:01:03"]
[BlackClock "0:01:45"]

1. e4 {[%clk 0:03:00]}  e6 {[%clk 0:03:00]} 2. d4 {[%clk 0:03:00]}  d5 {[%clk 0:03:01]} 3. e5 {[%clk 0:02:59]}  c5 {[%clk 0:03:01]} 4. c3 {[%clk 0:03:00]}  Qb6 {[%clk 0:03:02]} 5. Nf3 {[%clk 0:02:59]}  Nc6 {[%clk 0:03:03]} 6. a3 {[%clk 0:02:57]}  Nh6 {[%clk 0:03:04]} 7. b4 {[%clk 0:02:55]}  cxd4 {[%clk 0:03:04]} 8. cxd4 {[%clk 0:02:56]}  Nf5 {[%clk 0:03:04]} 9. Be3 {[%clk 0:02:53]}  f6 {[%clk 0:03:00]} 10. exf6 {[%clk 0:02:45]}  gxf6 {[%clk 0:03:01]} 11. Bd3 {[%clk 0:02:45]}  Nxe3 {[%clk 0:03:00]} 12. fxe3 {[%clk 0:02:46]}  Bh6 {[%clk 0:03:01]} 13. Qe2 {[%clk 0:02:41]}  Bd7 {[%clk 0:03:02]} 14. Nc3 {[%clk 0:02:31]}  Ne7 {[%clk 0:03:02]} 15. O-O {[%clk 0:02:28]}  O-O-O {[%clk 0:03:01]} 16. e4 {[%clk 0:02:01]}  Kb8 {[%clk 0:02:46]} 17. Kh1 {[%clk 0:01:55]}  Qd6 {[%clk 0:02:35]} 18. e5 {[%clk 0:01:53]}  fxe5 {[%clk 0:02:31]} 19. Nxe5 {[%clk 0:01:53]}  Be8 {[%clk 0:02:20]} 20. Nb5 {[%clk 0:01:41]}  Qb6 {[%clk 0:02:04]} 21. Nf7 {[%clk 0:01:32]}  Bxf7 {[%clk 0:02:00]} 22. Qe5+ {[%clk 0:01:31]}  Ka8 {[%clk 0:01:55]} 23. Nc7+ {[%clk 0:01:31]}  Kb8 {[%clk 0:01:54]} 24. Nb5+ {[%clk 0:01:17]}  Ka8 {[%clk 0:01:45]} 25. Rxf7 {[%clk 0:01:06]}  Rd7 {[%clk 0:01:45]} 26. Qxh8+ {[%clk 0:01:03]} 1-0


[Site "https://www.chess.com"]

[Event "Titled Tuesday Blitz November 22 Early 2022"]
[White "Nanditha, V"]
[Black "Sadubayev, Airat"]
[WhiteFideId "46626697"]
[BlackFideId "13713264"]
[WhiteElo "1564"]
[BlackElo "2160"]
[Result "1-0"]
[Round "11"]
[TimeControl "180+1"]
[Date "2022.11.23"]
[WhiteClock "0:00:14"]
[BlackClock "0:00:02"]

1. e4 {[%clk 0:03:00]}  c6 {[%clk 0:02:59]} 2. Nf3 {[%clk 0:02:53]}  d5 {[%clk 0:02:59]} 3. exd5 {[%clk 0:02:53]}  cxd5 {[%clk 0:02:59]} 4. Ne5 {[%clk 0:02:54]}  Nc6 {[%clk 0:02:49]} 5. Bb5 {[%clk 0:02:54]}  Qc7 {[%clk 0:02:43]} 6. d4 {[%clk 0:02:51]}  a6 {[%clk 0:01:58]} 7. Bxc6+ {[%clk 0:02:50]}  bxc6 {[%clk 0:01:59]} 8. O-O {[%clk 0:02:50]}  Nf6 {[%clk 0:01:57]} 9. Bf4 {[%clk 0:02:49]}  Qb7 {[%clk 0:01:49]} 10. b3 {[%clk 0:02:40]}  e6 {[%clk 0:01:39]} 11. Nc3 {[%clk 0:02:36]}  Be7 {[%clk 0:01:35]} 12. Ne2 {[%clk 0:02:35]}  O-O {[%clk 0:01:34]} 13. Nc1 {[%clk 0:02:35]}  c5 {[%clk 0:01:24]} 14. c3 {[%clk 0:02:29]}  Ne4 {[%clk 0:01:21]} 15. Qf3 {[%clk 0:02:20]}  Qb6 {[%clk 0:01:04]} 16. Qd3 {[%clk 0:02:15]}  cxd4 {[%clk 0:01:00]} 17. cxd4 {[%clk 0:02:15]}  Bb4 {[%clk 0:00:43]} 18. f3 {[%clk 0:02:13]}  Bc3 {[%clk 0:00:37]} 19. Rb1 {[%clk 0:01:56]}  Bxd4+ {[%clk 0:00:34]} 20. Kh1 {[%clk 0:01:55]}  Nf2+ {[%clk 0:00:30]} 21. Rxf2 {[%clk 0:01:54]}  Bxf2 {[%clk 0:00:31]} 22. Ng4 {[%clk 0:01:43]}  Bc5 {[%clk 0:00:22]} 23. b4 {[%clk 0:01:42]}  Be7 {[%clk 0:00:20]} 24. Nb3 {[%clk 0:01:39]}  Qb5 {[%clk 0:00:19]} 25. Qd2 {[%clk 0:01:37]}  Bxb4 {[%clk 0:00:15]} 26. Qd1 {[%clk 0:01:38]}  a5 {[%clk 0:00:13]} 27. Nd4 {[%clk 0:01:36]}  Qc4 {[%clk 0:00:12]} 28. Rc1 {[%clk 0:01:35]}  Qxa2 {[%clk 0:00:11]} 29. Nc6 {[%clk 0:01:30]}  Bd7 {[%clk 0:00:09]} 30. Nce5 {[%clk 0:01:26]}  Ba4 {[%clk 0:00:09]} 31. Qg1 {[%clk 0:01:24]}  Rac8 {[%clk 0:00:08]} 32. Ra1 {[%clk 0:01:24]}  Qb3 {[%clk 0:00:07]} 33. Rb1 {[%clk 0:01:23]}  Qc2 {[%clk 0:00:07]} 34. Ne3 {[%clk 0:01:18]}  Qc3 {[%clk 0:00:06]} 35. Ra1 {[%clk 0:01:13]}  Bb5 {[%clk 0:00:05]} 36. Nd1 {[%clk 0:01:10]}  Qc5 {[%clk 0:00:02]} 37. Be3 {[%clk 0:01:08]}  Qc4 {[%clk 0:00:01]} 38. Nxc4 {[%clk 0:01:08]}  dxc4 {[%clk 0:00:02]} 39. Rc1 {[%clk 0:01:07]}  c3 {[%clk 0:00:03]} 40. Bd4 {[%clk 0:01:06]}  c2 {[%clk 0:00:03]} 41. Ne3 {[%clk 0:01:07]}  Bd2 {[%clk 0:00:03]} 42. Rxc2 {[%clk 0:01:04]}  Rxc2 {[%clk 0:00:04]} 43. Nxc2 {[%clk 0:01:03]}  Rc8 {[%clk 0:00:05]} 44. Qd1 {[%clk 0:00:57]}  Bh6 {[%clk 0:00:05]} 45. Ne3 {[%clk 0:00:56]}  a4 {[%clk 0:00:04]} 46. h4 {[%clk 0:00:53]}  a3 {[%clk 0:00:03]} 47. Kh2 {[%clk 0:00:54]}  a2 {[%clk 0:00:03]} 48. Ba1 {[%clk 0:00:53]}  Bxe3 {[%clk 0:00:04]} 49. Qb3 {[%clk 0:00:51]}  Bf4+ {[%clk 0:00:04]} 50. g3 {[%clk 0:00:51]}  Bd6 {[%clk 0:00:04]} 51. Qxb5 {[%clk 0:00:50]}  Rc2+ {[%clk 0:00:04]} 52. Kh3 {[%clk 0:00:50]}  h6 {[%clk 0:00:05]} 53. Qd3 {[%clk 0:00:46]}  Rc1 {[%clk 0:00:04]} 54. Bb2 {[%clk 0:00:28]}  Rb1 {[%clk 0:00:03]} 55. Qd2 {[%clk 0:00:15]}  Kh8 {[%clk 0:00:02]} 56. Qxh6+ {[%clk 0:00:14]}  Kg8 {[%clk 0:00:02]} 57. Qxg7# {[%clk 0:00:14]} 1-0


[Site "https://www.chess.com"]

[Event "Titled Tuesday Blitz November 22 Early 2022"]
[White "Odegov, Artem"]
[Black "Ilkhomi, Jaloliddin"]
[WhiteFideId "34183644"]
[BlackFideId "14700948"]
[WhiteElo "2298"]
[BlackElo "2045"]
[Result "1/2-1/2"]
[Round "11"]
[TimeControl "180+1"]
[Date "2022.11.23"]
[WhiteClock "0:00:10"]
[BlackClock "0:00:07"]

1. d4 {[%clk 0:03:00]}  Nf6 {[%clk 0:02:48]} 2. c4 {[%clk 0:03:00]}  e6 {[%clk 0:02:46]} 3. Nf3 {[%clk 0:02:59]}  Bb4+ {[%clk 0:02:44]} 4. Bd2 {[%clk 0:03:00]}  a5 {[%clk 0:02:44]} 5. g3 {[%clk 0:03:00]}  b6 {[%clk 0:02:44]} 6. Bg2 {[%clk 0:03:00]}  Bb7 {[%clk 0:02:44]} 7. O-O {[%clk 0:03:00]}  O-O {[%clk 0:02:45]} 8. Nc3 {[%clk 0:03:01]}  Ne4 {[%clk 0:02:43]} 9. Qc2 {[%clk 0:03:00]}  f5 {[%clk 0:02:43]} 10. Ne5 {[%clk 0:02:43]}  Bxc3 {[%clk 0:02:37]} 11. bxc3 {[%clk 0:02:44]}  d6 {[%clk 0:02:38]} 12. Nd3 {[%clk 0:02:43]}  Nd7 {[%clk 0:02:36]} 13. Rae1 {[%clk 0:02:42]}  Nxd2 {[%clk 0:02:29]} 14. Qxd2 {[%clk 0:02:43]}  Bxg2 {[%clk 0:02:28]} 15. Kxg2 {[%clk 0:02:43]}  Qf6 {[%clk 0:02:26]} 16. f4 {[%clk 0:02:39]}  e5 {[%clk 0:02:22]} 17. fxe5 {[%clk 0:02:36]}  dxe5 {[%clk 0:02:22]} 18. e4 {[%clk 0:02:36]}  exd4 {[%clk 0:01:59]} 19. e5 {[%clk 0:02:14]}  Qc6+ {[%clk 0:01:53]} 20. Kg1 {[%clk 0:02:14]}  Qxc4 {[%clk 0:01:49]} 21. e6 {[%clk 0:02:04]}  dxc3 {[%clk 0:01:44]} 22. Qe3 {[%clk 0:02:02]}  Nf6 {[%clk 0:01:26]} 23. Ne5 {[%clk 0:01:56]}  Qxe6 {[%clk 0:01:16]} 24. Qxc3 {[%clk 0:01:44]}  Ne4 {[%clk 0:01:03]} 25. Qb2 {[%clk 0:01:15]}  Rad8 {[%clk 0:00:57]} 26. Nf3 {[%clk 0:01:13]}  Qd5 {[%clk 0:00:55]} 27. Rd1 {[%clk 0:00:53]}  Qc5+ {[%clk 0:00:55]} 28. Kg2 {[%clk 0:00:53]}  Qc3 {[%clk 0:00:43]} 29. Qb1 {[%clk 0:00:48]}  Nd2 {[%clk 0:00:32]} 30. Nxd2 {[%clk 0:00:18]}  Rxd2+ {[%clk 0:00:33]} 31. Rxd2 {[%clk 0:00:19]}  Qxd2+ {[%clk 0:00:34]} 32. Kg1 {[%clk 0:00:19]}  Qd4+ {[%clk 0:00:33]} 33. Rf2 {[%clk 0:00:18]}  g6 {[%clk 0:00:32]} 34. Qb3+ {[%clk 0:00:18]}  Kg7 {[%clk 0:00:31]} 35. Kg2 {[%clk 0:00:19]}  Qe4+ {[%clk 0:00:31]} 36. Kg1 {[%clk 0:00:18]}  Rd8 {[%clk 0:00:31]} 37. h4 {[%clk 0:00:17]}  Qd4 {[%clk 0:00:26]} 38. Qe6 {[%clk 0:00:10]}  Qd1+ {[%clk 0:00:26]} 39. Kh2 {[%clk 0:00:10]}  Qd6 {[%clk 0:00:26]} 40. Qb3 {[%clk 0:00:09]}  Qd5 {[%clk 0:00:25]} 41. Qc3+ {[%clk 0:00:09]}  Qd4 {[%clk 0:00:24]} 42. Qxc7+ {[%clk 0:00:09]}  Rd7 {[%clk 0:00:25]} 43. Qc2 {[%clk 0:00:09]}  h5 {[%clk 0:00:22]} 44. Re2 {[%clk 0:00:05]}  f4 {[%clk 0:00:21]} 45. Qb3 {[%clk 0:00:03]}  fxg3+ {[%clk 0:00:20]} 46. Qxg3 {[%clk 0:00:03]}  Rf7 {[%clk 0:00:20]} 47. Rg2 {[%clk 0:00:03]}  Qe4 {[%clk 0:00:19]} 48. Qd6 {[%clk 0:00:03]}  Qf4+ {[%clk 0:00:18]} 49. Qxf4 {[%clk 0:00:02]}  Rxf4 {[%clk 0:00:19]} 50. Kh3 {[%clk 0:00:02]}  Ra4 {[%clk 0:00:17]} 51. Rb2 {[%clk 0:00:02]}  Ra3+ {[%clk 0:00:18]} 52. Kh2 {[%clk 0:00:02]}  b5 {[%clk 0:00:18]} 53. Rxb5 {[%clk 0:00:02]}  Rxa2+ {[%clk 0:00:19]} 54. Kg3 {[%clk 0:00:03]}  a4 {[%clk 0:00:20]} 55. Kf4 {[%clk 0:00:02]}  Kh6 {[%clk 0:00:20]} 56. Rb8 {[%clk 0:00:01]}  Ra1 {[%clk 0:00:21]} 57. Rh8+ {[%clk 0:00:01]}  Kg7 {[%clk 0:00:21]} 58. Ra8 {[%clk 0:00:02]}  Rf1+ {[%clk 0:00:21]} 59. Kg3 {[%clk 0:00:01]}  Ra1 {[%clk 0:00:16]} 60. Ra7+ {[%clk 0:00:02]}  Kh6 {[%clk 0:00:15]} 61. Ra8 {[%clk 0:00:02]}  a3 {[%clk 0:00:16]} 62. Rh8+ {[%clk 0:00:03]}  Kg7 {[%clk 0:00:16]} 63. Ra8 {[%clk 0:00:04]}  a2 {[%clk 0:00:16]} 64. Kg2 {[%clk 0:00:04]}  Kf6 {[%clk 0:00:16]} 65. Ra6+ {[%clk 0:00:05]}  Ke5 {[%clk 0:00:16]} 66. Ra5+ {[%clk 0:00:06]}  Kd4 {[%clk 0:00:17]} 67. Ra8 {[%clk 0:00:06]}  Ke3 {[%clk 0:00:17]} 68. Ra6 {[%clk 0:00:07]}  Kf4 {[%clk 0:00:17]} 69. Ra5 {[%clk 0:00:06]}  Ke3 {[%clk 0:00:12]} 70. Ra6 {[%clk 0:00:06]}  Kd2 {[%clk 0:00:09]} 71. Ra8 {[%clk 0:00:06]}  Kd3 {[%clk 0:00:09]} 72. Rd8+ {[%clk 0:00:07]}  Ke4 {[%clk 0:00:09]} 73. Re8+ {[%clk 0:00:07]}  Kf5 {[%clk 0:00:10]} 74. Ra8 {[%clk 0:00:07]}  g5 {[%clk 0:00:09]} 75. Ra5+ {[%clk 0:00:08]}  Kg6 {[%clk 0:00:08]} 76. Rxg5+ {[%clk 0:00:07]}  Kf6 {[%clk 0:00:07]} 77. Ra5 {[%clk 0:00:08]}  Ke6 {[%clk 0:00:08]} 78. Ra8 {[%clk 0:00:08]}  Kd6 {[%clk 0:00:08]} 79. Ra7 {[%clk 0:00:08]}  Ke5 {[%clk 0:00:09]} 80. Ra8 {[%clk 0:00:09]}  Kd4 {[%clk 0:00:09]} 81. Ra6 {[%clk 0:00:09]}  Kd3 {[%clk 0:00:07]} 82. Ra8 {[%clk 0:00:09]}  Kc4 {[%clk 0:00:08]} 83. Rc8+ {[%clk 0:00:09]}  Kb5 {[%clk 0:00:08]} 84. Rb8+ {[%clk 0:00:10]}  Ka4 {[%clk 0:00:08]} 85. Ra8+ {[%clk 0:00:10]}  Kb3 {[%clk 0:00:09]} 86. Rb8+ {[%clk 0:00:11]}  Kc2 {[%clk 0:00:09]} 87. Rc8+ {[%clk 0:00:11]}  Kd1 {[%clk 0:00:09]} 88. Rd8+ {[%clk 0:00:12]}  Ke2 {[%clk 0:00:10]} 89. Re8+ {[%clk 0:00:12]}  Kd3 {[%clk 0:00:11]} 90. Ra8 {[%clk 0:00:12]}  Rc1 {[%clk 0:00:07]} 91. Rxa2 {[%clk 0:00:11]}  Rc4 {[%clk 0:00:08]} 92. Kg3 {[%clk 0:00:09]}  Ke3 {[%clk 0:00:08]} 93. Ra3+ {[%clk 0:00:09]}  Ke4 {[%clk 0:00:08]} 94. Rf3 {[%clk 0:00:10]}  Ke5 {[%clk 0:00:08]} 95. Ra3 {[%clk 0:00:09]}  Rc5 {[%clk 0:00:08]} 96. Rf3 {[%clk 0:00:09]}  Rc4 {[%clk 0:00:07]} 97. Rf2 {[%clk 0:00:09]}  Rc3+ {[%clk 0:00:07]} 98. Kg2 {[%clk 0:00:10]}  Rc4 {[%clk 0:00:07]} 99. Kh3 {[%clk 0:00:08]}  Ke4 {[%clk 0:00:06]} 100. Rf6 {[%clk 0:00:08]}  Rc3+ {[%clk 0:00:06]} 101. Kg2 {[%clk 0:00:08]}  Rc5 {[%clk 0:00:04]} 102. Kg3 {[%clk 0:00:08]}  Rf5 {[%clk 0:00:04]} 103. Re6+ {[%clk 0:00:08]}  Re5 {[%clk 0:00:04]} 104. Rg6 {[%clk 0:00:08]}  Rd5 {[%clk 0:00:04]} 105. Ra6 {[%clk 0:00:09]}  Kf5 {[%clk 0:00:04]} 106. Ra4 {[%clk 0:00:08]}  Rd3+ {[%clk 0:00:04]} 107. Kg2 {[%clk 0:00:09]}  Rc3 {[%clk 0:00:05]} 108. Kf2 {[%clk 0:00:09]}  Rb3 {[%clk 0:00:05]} 109. Kg2 {[%clk 0:00:09]}  Rc3 {[%clk 0:00:05]} 110. Rb4 {[%clk 0:00:10]}  Re3 {[%clk 0:00:06]} 111. Rc4 {[%clk 0:00:10]}  Rb3 {[%clk 0:00:06]} 112. Ra4 {[%clk 0:00:10]}  Rc3 {[%clk 0:00:07]} 1/2-1/2


[Site "https://www.chess.com"]

[Event "Titled Tuesday Blitz November 22 Early 2022"]
[White "Ostrovskiy, Aleksandr"]
[Black "Skliarov, Viktor"]
[WhiteFideId "2034239"]
[BlackFideId "14106736"]
[WhiteElo "2340"]
[BlackElo "2284"]
[Result "1-0"]
[Round "11"]
[TimeControl "180+1"]
[Date "2022.11.23"]
[WhiteClock "0:00:06"]
[BlackClock "0:00:02"]

1. d4 {[%clk 0:02:44]}  Nf6 {[%clk 0:02:59]} 2. Bf4 {[%clk 0:02:41]}  g6 {[%clk 0:02:58]} 3. Nc3 {[%clk 0:02:41]}  Bg7 {[%clk 0:02:57]} 4. e4 {[%clk 0:02:41]}  d6 {[%clk 0:02:58]} 5. Qd2 {[%clk 0:02:41]}  O-O {[%clk 0:02:55]} 6. O-O-O {[%clk 0:02:40]}  a6 {[%clk 0:02:53]} 7. Bh6 {[%clk 0:02:37]}  Nbd7 {[%clk 0:02:51]} 8. h4 {[%clk 0:02:33]}  c5 {[%clk 0:02:49]} 9. dxc5 {[%clk 0:02:27]}  Nxc5 {[%clk 0:02:47]} 10. Bxg7 {[%clk 0:02:21]}  Kxg7 {[%clk 0:02:47]} 11. e5 {[%clk 0:02:21]}  Ng4 {[%clk 0:01:39]} 12. h5 {[%clk 0:02:19]}  Bf5 {[%clk 0:01:29]} 13. f3 {[%clk 0:02:11]}  Nxe5 {[%clk 0:01:28]} 14. g4 {[%clk 0:02:11]}  Be6 {[%clk 0:01:12]} 15. hxg6 {[%clk 0:01:56]}  fxg6 {[%clk 0:01:12]} 16. Ne4 {[%clk 0:01:43]}  Nxe4 {[%clk 0:01:09]} 17. Qh6+ {[%clk 0:01:39]}  Kf7 {[%clk 0:01:07]} 18. Qxh7+ {[%clk 0:01:35]}  Ke8 {[%clk 0:01:07]} 19. fxe4 {[%clk 0:01:36]}  Qa5 {[%clk 0:01:03]} 20. a3 {[%clk 0:01:26]}  Rc8 {[%clk 0:00:55]} 21. Ne2 {[%clk 0:01:14]}  Bb3 {[%clk 0:00:34]} 22. Nd4 {[%clk 0:01:04]}  Bxc2 {[%clk 0:00:26]} 23. Nxc2 {[%clk 0:01:01]}  Rxc2+ {[%clk 0:00:21]} 24. Kxc2 {[%clk 0:00:59]}  Qa4+ {[%clk 0:00:16]} 25. Kc1 {[%clk 0:00:36]}  Rf2 {[%clk 0:00:16]} 26. Rd2 {[%clk 0:00:26]}  Qc6+ {[%clk 0:00:14]} 27. Kd1 {[%clk 0:00:22]}  Qa4+ {[%clk 0:00:15]} 28. Ke1 {[%clk 0:00:17]}  Rxd2 {[%clk 0:00:12]} 29. Kxd2 {[%clk 0:00:18]}  Qd4+ {[%clk 0:00:12]} 30. Kc1 {[%clk 0:00:15]}  Qe3+ {[%clk 0:00:07]} 31. Kb1 {[%clk 0:00:12]}  Qxe4+ {[%clk 0:00:08]} 32. Ka1 {[%clk 0:00:11]}  Kd7 {[%clk 0:00:03]} 33. Qh2 {[%clk 0:00:09]}  Qe1+ {[%clk 0:00:03]} 34. Ka2 {[%clk 0:00:09]}  Qe4 {[%clk 0:00:03]} 35. Qg2 {[%clk 0:00:06]}  Qd4 {[%clk 0:00:03]} 36. Rh3 {[%clk 0:00:06]}  b5 {[%clk 0:00:03]} 37. Qb7+ {[%clk 0:00:06]}  Ke6 {[%clk 0:00:03]} 38. Qg2 {[%clk 0:00:06]}  Kd7 {[%clk 0:00:03]} 39. g5 {[%clk 0:00:06]}  b4 {[%clk 0:00:02]} 40. Qb7+ {[%clk 0:00:04]}  Ke6 {[%clk 0:00:03]} 41. Qxb4 {[%clk 0:00:05]}  Qd1 {[%clk 0:00:03]} 42. Qb3+ {[%clk 0:00:05]}  Qxb3+ {[%clk 0:00:02]} 43. Kxb3 {[%clk 0:00:06]} 1-0


[Site "https://www.chess.com"]

[Event "Titled Tuesday Blitz November 22 Early 2022"]
[White "Pajeken, Jakob Leon"]
[Black "Khamdamova, Afruza"]
[WhiteFideId "12942839"]
[BlackFideId "14210444"]
[WhiteElo "2429"]
[BlackElo "2018"]
[Result "0-1"]
[Round "11"]
[TimeControl "180+1"]
[Date "2022.11.23"]
[WhiteClock "0:01:16"]
[BlackClock "0:00:14"]

1. d4 {[%clk 0:02:57]}  Nf6 {[%clk 0:02:59]} 2. Nf3 {[%clk 0:02:58]}  d5 {[%clk 0:02:59]} 3. c4 {[%clk 0:02:57]}  e6 {[%clk 0:02:58]} 4. Nc3 {[%clk 0:02:57]}  Be7 {[%clk 0:02:58]} 5. g3 {[%clk 0:02:57]}  O-O {[%clk 0:02:56]} 6. Bg2 {[%clk 0:02:58]}  dxc4 {[%clk 0:02:57]} 7. Ne5 {[%clk 0:02:56]}  c5 {[%clk 0:02:56]} 8. dxc5 {[%clk 0:02:56]}  Bxc5 {[%clk 0:02:54]} 9. O-O {[%clk 0:02:53]}  Nbd7 {[%clk 0:02:48]} 10. Nxc4 {[%clk 0:02:52]}  Nb6 {[%clk 0:02:48]} 11. Na5 {[%clk 0:02:51]}  Qe7 {[%clk 0:02:46]} 12. Bg5 {[%clk 0:02:47]}  Rb8 {[%clk 0:02:43]} 13. Qc2 {[%clk 0:02:44]}  Bb4 {[%clk 0:02:38]} 14. Nb3 {[%clk 0:02:42]}  h6 {[%clk 0:02:31]} 15. Bxf6 {[%clk 0:02:42]}  Qxf6 {[%clk 0:02:31]} 16. Ne4 {[%clk 0:02:41]}  Qe7 {[%clk 0:02:18]} 17. a3 {[%clk 0:02:40]}  Bd6 {[%clk 0:02:18]} 18. Nxd6 {[%clk 0:02:40]}  Qxd6 {[%clk 0:02:17]} 19. Rfd1 {[%clk 0:02:38]}  Qe7 {[%clk 0:02:17]} 20. Rac1 {[%clk 0:02:36]}  Bd7 {[%clk 0:02:13]} 21. Nc5 {[%clk 0:02:25]}  Rfc8 {[%clk 0:02:03]} 22. Qd2 {[%clk 0:02:24]}  Bc6 {[%clk 0:02:03]} 23. e4 {[%clk 0:02:24]}  Rd8 {[%clk 0:02:01]} 24. Qe3 {[%clk 0:02:24]}  Rxd1+ {[%clk 0:01:59]} 25. Rxd1 {[%clk 0:02:25]}  Nc4 {[%clk 0:01:58]} 26. Qd4 {[%clk 0:02:18]}  Nxb2 {[%clk 0:01:49]} 27. Nxe6 {[%clk 0:02:11]}  Qxe6 {[%clk 0:01:44]} 28. Qxb2 {[%clk 0:02:11]}  Re8 {[%clk 0:01:40]} 29. Qd4 {[%clk 0:02:09]}  b6 {[%clk 0:01:40]} 30. Rc1 {[%clk 0:02:08]}  Qg6 {[%clk 0:01:20]} 31. Re1 {[%clk 0:02:00]}  Qe6 {[%clk 0:01:14]} 32. h4 {[%clk 0:01:58]}  Qe7 {[%clk 0:00:54]} 33. Rc1 {[%clk 0:01:53]}  Rd8 {[%clk 0:00:45]} 34. Qc3 {[%clk 0:01:48]}  Bb5 {[%clk 0:00:41]} 35. e5 {[%clk 0:01:45]}  Rd3 {[%clk 0:00:23]} 36. Qc8+ {[%clk 0:01:44]}  Rd8 {[%clk 0:00:17]} 37. Qf5 {[%clk 0:01:44]}  Bd7 {[%clk 0:00:17]} 38. Qf4 {[%clk 0:01:42]}  Be6 {[%clk 0:00:17]} 39. Rc3 {[%clk 0:01:38]}  a5 {[%clk 0:00:16]} 40. Kh2 {[%clk 0:01:38]}  b5 {[%clk 0:00:16]} 41. Qc1 {[%clk 0:01:28]}  b4 {[%clk 0:00:14]} 42. axb4 {[%clk 0:01:29]}  axb4 {[%clk 0:00:15]} 43. Rc7 {[%clk 0:01:30]}  Qe8 {[%clk 0:00:15]} 44. Be4 {[%clk 0:01:25]}  b3 {[%clk 0:00:15]} 45. Qc3 {[%clk 0:01:19]}  Qa4 {[%clk 0:00:14]} 46. Rb7 {[%clk 0:01:16]}  Qxe4 {[%clk 0:00:14]} 0-1


[Site "https://www.chess.com"]